bitfinex-derivatives/quotes_ETHF0:USTF0_20250828
["timestamp","ask_amount","ask_price","bid_price","bid_amount"]
[1756410854789,0.4033,4462.9,4462.8,0.5603]
[1756410855001,0.40329,4463.0,4462.9,0.3381]
[1756410855300,0.93519,4463.0,4462.9,0.5603]
[1756410856795,0.5319,4463.0,4462.9,0.5603]
[1756410859297,0.61836,4462.2,4462.1,0.5603]
[1756410859598,0.4034,4461.8,4461.4,0.2222]
[1756410859797,0.40341,4461.7,4461.5,0.234]
[1756410860001,0.40341,4461.7,4461.6,0.5603]
[1756410860899,0.40343,4461.4,4461.3,32.25]
[1756410861198,0.72033,4461.4,4461.3,32.8221]
[1756410861699,0.40343,4461.4,4461.3,32.8221]
[1756410862405,0.5319,4461.8,4461.7,0.2222]
[1756410862603,0.40339,4461.9,4461.8,0.3381]
[1756410862903,0.40339,4461.9,4461.8,0.5603]
[1756410863203,0.93529,4461.9,4461.8,0.2222]
[1756410863403,0.93529,4461.9,4461.8,0.4562]
[1756410863799,0.93529,4461.9,4461.8,0.7943]
[1756410866602,0.93529,4461.9,4461.8,0.5603]
[1756410867699,0.5319,4461.9,4461.6,0.234]
[1756410867906,0.93532,4461.5,4461.4,0.234]
[1756410869203,0.5319,4461.5,4460.5,3.5459]
[1756410869402,0.9354,4460.6,4460.5,3.7681]
[1756410869605,0.5319,4460.6,4460.5,0.7943]
[1756410869804,0.9354,4460.6,4460.5,0.7943]
[1756410870003,1.00867,4461.1,4459.6,33.28298]
[1756410870004,0.40357,4459.9,4459.8,0.5603]
[1756410870201,1.00884,4460.4,4459.6,32.274]
[1756410870202,0.72049,4459.7,4459.6,32.274]
[1756410870409,0.72049,4459.7,4459.6,32.508]
[1756410870598,0.72049,4459.7,4459.6,32.8461]
[1756410870804,0.3169,4459.7,4459.6,32.8461]
[1756410874811,0.40364,4459.2,4459.1,0.2222]
[1756410875018,0.3169,4459.7,4459.2,0.3381]
[1756410875208,3.2078,4460.2,4459.2,0.5603]
[1756410875209,0.40363,4459.3,4459.2,0.5603]
[1756410875408,0.5319,4459.3,4459.2,0.5603]
[1756410876308,0.4036,4459.6,4459.3,0.3233]
[1756410876513,0.3403,4459.8,4459.5,0.2184]
[1756410876816,0.4036,4459.6,4459.5,0.5417]
[1756410877017,0.96,4459.6,4459.5,0.5417]
[1756410877914,0.6197,4459.6,4459.5,0.5417]
[1756410878614,0.96,4459.6,4459.5,0.5417]
[1756410879616,0.40359,4459.7,4459.6,0.5417]
[1756410880211,0.40359,4459.7,4458.4,0.5417]
[1756410880212,0.4037,4458.5,4458.4,0.5417]
[1756410880416,0.96014,4458.0,4457.9,0.2184]
[1756410880607,0.2161,4457.5,4457.3,3.2078]
[1756410880921,3.2078,4457.4,4456.2,0.4039]
[1756410881111,0.3403,4457.3,4456.6,0.3233]
[1756410881616,0.61994,4456.9,4456.8,0.2184]
[1756410881816,0.5564,4456.6,4456.5,0.234]
[1756410882015,0.5564,4456.6,4456.5,0.4524]
[1756410883310,0.3403,4456.5,4455.8,0.3233]
[1756410883714,0.5564,4456.2,4456.1,0.2184]
[1756410883908,0.2161,4456.0,4455.9,0.2184]
[1756410884215,0.2161,4456.0,4455.9,0.5417]
[1756410885015,0.3403,4456.9,4456.3,0.3233]
[1756410885209,3.2078,4457.0,4456.9,0.5417]
[1756410885412,3.2078,4457.0,4456.9,0.7767]
[1756410885611,33.30524,4458.6,4456.9,0.7767]
[1756410885612,3.5481,4457.8,4457.7,0.2184]
[1756410885913,3.7642,4457.8,4457.7,0.7767]
[1756410886415,3.5481,4458.4,4457.8,0.40376]
[1756410887018,3.5481,4458.4,4458.3,0.5417]
[1756410887019,3.2078,4458.4,4458.3,0.5417]
[1756410887312,3.7642,4458.4,4458.3,0.7767]
[1756410888120,3.4239,4458.4,4458.3,1.18041]
[1756410888321,3.4239,4458.4,4458.3,0.7767]
[1756410888518,3.7642,4458.4,4458.3,0.7767]
[1756410889721,0.5564,4458.4,4458.3,0.7767]
[1756410890219,0.2161,4458.4,4458.0,0.40374]
[1756410890420,0.2161,4458.1,4458.0,0.94544]
[1756410890621,0.2161,4458.1,4458.0,1.18044]
[1756410891321,0.5564,4458.4,4458.3,0.5417]
[1756410891721,0.5564,4458.4,4458.3,0.2184]
[1756410896224,0.2161,4458.0,4457.9,3.93485]
[1756410896425,0.5564,4458.0,4457.9,4.16885]
[1756410896926,0.5564,4458.0,4457.9,4.38725]
[1756410897323,0.2161,4458.0,4457.9,4.38725]
[1756410897621,0.40373,4458.2,4458.1,0.2184]
[1756410897821,0.96013,4458.2,4458.1,0.5417]
[1756410900220,4.22431,4458.2,4456.3,0.3233]
[1756410900523,4.22431,4458.2,4455.9,0.03905744]
[1756410900524,0.96032,4456.0,4455.9,0.03905744]
[1756410900726,0.2161,4455.3,4455.2,0.5417]
[1756410901230,3.61177,4455.5,4455.4,0.5417]
[1756410901426,0.404,4455.2,4454.9,0.236]
[1756410901626,0.9604,4455.2,4455.1,0.2184]
[1756410902022,0.9604,4455.2,4454.3,0.40407]
[1756410902023,0.74429,4455.2,4454.3,0.40407]
[1756410902223,0.3403,4455.2,4455.1,0.5417]
[1756410902425,3.2078,4455.5,4455.1,0.5417]
[1756410902626,1.17646069,4457.3,4456.0,0.3233]
[1756410902627,0.3403,4456.7,4456.0,0.3233]
[1756410902932,0.74416,4456.7,4456.1,0.237]
[1756410903124,0.3403,4456.7,4456.1,0.237]
[1756410903923,0.3403,4456.5,4456.4,0.2184]
[1756410904227,0.3403,4457.3,4456.9,0.40383]
[1756410904430,0.5564,4457.4,4457.0,0.5603]
[1756410904735,3.2078,4457.5,4457.0,0.237]
[1756410905036,3.2078,4457.5,4457.3,0.9455]
[1756410905337,0.40374,4458.0,4457.0,0.237]
[1756410905338,3.2078,4458.0,4457.1,0.3233]
[1756410905530,3.2078,4459.0,4458.7,0.3233]
[1756410905833,3.2078,4459.0,4458.9,0.5417]
[1756410906031,3.4244,4459.0,4458.9,0.7787]
[1756410906235,3.7356,4459.0,4458.9,0.237]
[1756410906432,3.4244,4459.0,4458.9,0.7664]
[1756410906638,3.2078,4459.6,4459.5,0.5294]
[1756410906842,3.2078,4459.6,4459.5,0.7664]
[1756410907035,3.7356,4459.6,4459.5,0.4515]
[1756410907233,0.40365,4459.1,4458.7,0.237]
[1756410907436,0.2166,4458.2,4457.6,0.3149]
[1756410907643,0.5278,4457.9,4457.8,32.55]
[1756410908744,0.5278,4457.9,4457.8,32.8649]
[1756410909831,0.2166,4457.9,4457.8,32.8649]
[1756410910233,0.5278,4457.9,4457.8,32.313]
[1756410910534,0.5278,4457.9,4457.8,32.55]
[1756410914849,0.5278,4457.9,4457.2,0.3149]
[1756410915142,0.9316,4457.3,4457.2,0.3149]
[1756410915337,0.9316,4457.3,4457.2,0.7664]
[1756410915536,0.6204,4457.3,4457.2,0.7664]
[1756410915732,3.2078,4458.0,4457.9,0.2145]
[1756410915936,3.2078,4458.0,4457.9,0.7664]
[1756410916340,3.519,4458.0,4457.5,0.3149]
[1756410916539,0.93158,4457.6,4457.5,0.5294]
[1756410917034,0.93158,4457.6,4457.5,0.7664]
[1756410917235,0.62038,4457.6,4457.5,0.7664]
[1756410918844,0.40378,4457.6,4457.5,0.7664]
[1756410921643,0.62038,4457.6,4457.5,0.7664]
[1756410922243,0.3112,4457.6,4456.5,3.2078]
[1756410922441,0.40386,4456.7,4456.6,0.7654]
[1756410922643,0.93166,4456.7,4456.6,0.5294]
[1756410922850,0.93166,4456.7,4456.6,0.7654]
[1756410923145,0.93166,4456.7,4456.6,0.5294]
[1756410923443,0.62046,4456.7,4456.6,0.7654]
[1756410923640,0.40386,4456.7,4456.6,0.7654]
[1756410924343,0.4039,4456.2,4456.1,32.312]
[1756410924546,0.4039,4456.2,4456.1,32.8629]
[1756410924948,0.7151,4456.2,4456.1,32.548]
[1756410925144,0.62054,4455.8,4455.7,0.5294]
[1756410925444,0.93174,4455.8,4455.7,0.5294]
[1756410925648,0.93174,4455.8,4455.7,0.4505]
[1756410925844,0.93174,4455.8,4455.7,0.7654]
[1756410926045,0.93174,4455.8,4455.7,0.236]
[1756410926452,0.40399,4455.3,4455.2,0.5294]
[1756410926644,0.40399,4455.3,4455.2,0.7654]
[1756410926846,0.62059,4455.3,4455.2,0.7654]
[1756410927051,0.40398,4455.4,4455.2,0.7654]
[1756410927346,0.40398,4455.4,4455.3,0.5294]
[1756410928248,0.62058,4455.4,4455.3,0.5294]
[1756410928445,0.93178,4455.4,4455.3,0.7654]
[1756410929051,0.40398,4455.4,4455.3,0.7654]
[1756410929843,0.40396,4455.6,4455.3,0.4505]
[1756410930146,0.40397,4455.5,4455.4,0.5294]
[1756410930548,0.71514,4455.8,4455.4,0.93338]
[1756410930754,0.40396,4455.7,4455.6,0.5294]
[1756410930948,0.93176,4455.7,4455.6,0.5294]
[1756410931955,3.61173,4455.9,4455.8,0.5294]
[1756410932152,3.2078,4455.9,4455.8,0.7654]
[1756410932353,3.7356,4455.9,4455.8,0.5294]
[1756410932546,3.7356,4455.9,4455.8,0.7654]
[1756410934254,3.7356,4455.9,4455.8,0.236]
[1756410934747,3.7356,4455.9,4455.8,0.7654]
[1756410935460,0.5278,4455.5,4455.4,0.5294]
[1756410935644,0.93177,4455.5,4455.4,0.7654]
[1756410935955,0.5278,4455.5,4455.4,0.7654]
[1756410936149,0.40395,4455.8,4455.5,0.40397]
[1756410936357,0.5286,4455.8,4455.7,0.5352]
[1756410940565,0.93254,4455.8,4455.7,0.5352]
[1756410944061,0.40401,4455.0,4454.9,0.2204]
[1756410944261,0.40401,4455.0,4454.9,0.4554]
[1756410944559,0.61271,4455.0,4454.9,0.4554]
[1756410944764,0.61271,4455.0,4454.9,0.7702]
[1756410946457,0.93261,4455.0,4454.9,0.7702]
[1756410946656,0.93261,4455.0,4454.9,0.5352]
[1756410946860,0.93261,4455.0,4454.9,0.7702]
[1756410948662,0.61271,4455.0,4454.9,0.7702]
[1756410949369,0.93261,4455.0,4454.9,0.7702]
[1756410951068,0.93261,4455.0,4454.4,2.4122075]
[1756410951069,0.2087,4454.5,4454.4,2.0081475]
[1756410951269,4.61276,4454.5,4454.3,1.4389475]
[1756410951469,0.40418,4453.2,4453.0,3.2078]
[1756410951669,0.4042,4453.0,4452.8,1.5466763]
[1756410951974,3.2078,4453.7,4453.0,0.3148]
[1756410952170,0.40418,4453.2,4453.1,0.3148]
[1756410952374,0.40419,4453.1,4453.0,0.235]
[1756410952570,0.40419,4453.1,4452.8,1.3262763]
[1756410952766,0.40419,4453.1,4452.9,0.4554]
[1756410952967,0.40419,4453.1,4453.0,0.5352]
[1756410953478,3.2078,4453.7,4453.0,0.5352]
[1756410953479,0.40417,4453.3,4453.0,0.5352]
[1756410953776,3.2078,4453.7,4453.5,0.3148]
[1756410953980,3.2078,4453.7,4453.6,0.5352]
[1756410954175,0.40414,4453.6,4453.0,3.2078]
[1756410954376,3.2078,4453.7,4453.1,0.3148]
[1756410954577,0.40415,4453.5,4453.4,0.5352]
[1756410956869,0.4042,4452.9,4452.8,1.2318763]
[1756410957078,0.40419,4453.1,4452.9,0.5352]
[1756410957377,0.40428,4452.1,4451.0,0.18732348]
[1756410957575,0.40428,4452.1,4448.2,18.46325001]
[1756410957576,3.2078,4451.1,4449.8,0.3148]
[1756410957776,3.2078,4450.1,4449.9,0.40447]
[1756410957978,3.2078,4450.1,4448.3,10.1155]
[1756410957979,0.40445,4450.2,4450.1,14.01231763]
[1756410958275,3.2078,4450.8,4450.7,0.5352]
[1756410958476,3.61219,4450.8,4450.7,0.5352]
[1756410958780,0.40441,4450.6,4450.5,0.3148]
[1756410958978,0.40441,4450.6,4450.4,0.236]
[1756410959173,0.4044,4450.7,4450.6,13.81982272]
[1756410959372,0.40446,4450.1,4450.0,24.63460015]
[1756410959673,1.24796,4451.0,4450.0,24.63460015]
[1756410959674,0.40445,4450.2,4450.1,7.27680491]
[1756410960078,4.40445,4450.2,4450.1,7.27680491]
[1756410960472,3.61223,4450.4,4450.1,7.81200491]
[1756410960779,0.40441,4450.6,4450.5,0.3148]
[1756410960983,3.2078,4450.9,4450.6,8.1498469]
[1756410961177,0.62907,4450.8,4450.6,7.6788669]
[1756410961377,4.40439,4450.8,4450.6,7.6788669]
[1756410961774,0.40439,4450.8,4450.6,7.6788669]
[1756410962178,0.40439,4450.8,4450.7,0.3148]
[1756410962373,3.2078,4450.9,4450.8,7.2744769]
[1756410962877,3.61218,4450.9,4450.8,7.2744769]
[1756410963081,0.40438,4451.0,4450.8,7.4948769]
[1756410963285,3.2078,4451.4,4451.0,6.8700969]
[1756410963478,0.40437,4451.1,4451.0,7.1848969]
[1756410963977,3.2078,4451.4,4451.0,7.3294969]
[1756410964179,3.61214,4451.4,4451.3,0.5352]
[1756410964376,1.01072,4452.0,4451.4,3.2579569]
[1756410964783,0.40432,4451.6,4451.5,3.4468]
[1756410965084,0.40432,4451.6,4451.5,3.7616]
[1756410965274,0.40432,4451.6,4451.5,3.982]
[1756410965476,3.2078,4452.8,4452.1,0.2204]
[1756410965681,0.40425,4452.4,4452.3,0.5352]
[1756410966177,1.11655,4452.4,4452.3,0.239]
[1756410966581,0.2177,4452.5,4452.4,2.8536769]
[1756410966885,0.62194,4452.5,4452.4,2.3708169]
[1756410967181,1.11654,4452.5,4452.4,2.3708169]
[1756410967377,5.11654,4452.5,4452.4,2.3708169]
[1756410967775,3.2078,4452.8,4452.4,2.5717169]
[1756410968079,3.2078,4453.3,4452.8,1.9665969]
[1756410968286,0.2177,4453.0,4452.9,0.7752]
[1756410968490,0.7123,4453.0,4452.9,0.7752]
[1756410968980,0.2177,4453.0,4452.9,0.7752]
[1756410969180,0.40418,4453.1,4453.0,2.4859969]
[1756410969777,3.61197,4453.3,4453.0,2.4859969]
[1756410969978,0.40416,4453.4,4453.3,0.5362]
[1756410970178,0.40414,4453.6,4453.5,0.5362]
[1756410970387,0.40414,4453.6,4453.5,0.7752]
[1756410971280,0.40413,4453.7,4453.6,0.9405969]
[1756410971582,0.40418,4453.2,4453.1,3.2078]
[1756410971787,0.40423,4452.6,4452.5,0.5362]
[1756410971977,0.40422,4452.8,4452.6,0.5362]
[1756410972183,0.40422,4452.8,4452.7,3.744]
[1756410972380,0.40422,4452.8,4452.7,3.983]
[1756410972579,0.40422,4452.8,4452.7,0.7752]
[1756410972978,0.40426,4452.3,4452.2,3.2078]
[1756410973183,1.01067,4452.2,4451.6,3.744]
[1756410973481,0.40431,4451.7,4451.6,3.744]
[1756410973684,0.40431,4451.7,4451.6,3.983]
[1756410973884,0.40436,4451.2,4451.1,36.094]
[1756410974179,0.40436,4451.2,4451.1,36.333]
[1756410974888,0.40436,4451.2,4451.1,3.983]
[1756410976787,3.2078,4452.7,4451.8,0.5362]
[1756410977089,0.40426,4452.4,4452.2,0.5362]
[1756410977284,0.40426,4452.4,4452.3,0.7752]
[1756410977790,0.40426,4452.4,4452.3,0.5362]
[1756410978085,0.70466,4452.4,4452.3,0.239]
[1756410978480,0.70466,4452.4,4451.7,0.5362]
[1756410978481,0.4043,4451.8,4451.7,0.5362]
[1756410978685,0.4043,4451.8,4451.1,3.2078]
[1756410978686,0.40436,4451.2,4451.1,3.744]
[1756410978887,0.40436,4451.2,4451.1,3.983]
[1756410979081,0.40436,4451.2,4451.1,3.744]
[1756410979283,0.40436,4451.2,4450.6,3.744]
[1756410979284,0.4044,4450.7,4450.6,3.744]
[1756410979482,0.4044,4450.7,4450.6,3.983]
[1756410980277,0.4044,4450.7,4450.6,4.2950511]
[1756410980884,0.3004,4452.0,4450.7,0.5362]
[1756410981188,0.40439,4450.9,4450.8,0.7752]
[1756410981385,0.40439,4450.9,4450.8,3.983]
[1756410982784,0.40437,4451.1,4450.9,0.5362]
[1756410982978,0.40437,4451.1,4451.0,0.7752]
[1756410983781,0.40435,4451.3,4451.1,0.5362]
[1756410984084,0.40435,4451.3,4451.2,0.7752]
[1756410984892,0.40435,4451.3,4451.2,0.5362]
[1756410985092,0.40435,4451.3,4451.2,0.7752]
[1756410985389,0.40435,4451.3,4451.2,0.5362]
[1756410985590,0.40435,4451.3,4451.2,0.7752]
[1756410985591,0.61164451,4451.3,4451.2,0.7752]
[1756410985787,0.40435,4451.3,4451.2,0.7752]
[1756410985985,0.61165987,4451.3,4451.2,0.7752]
[1756410986381,0.20730987,4451.3,4451.2,0.7752]
[1756410986685,0.40434,4451.4,4451.3,0.5362]
[1756410986885,0.61174696,4451.4,4451.3,3.744]
[1756410987290,0.20740696,4451.4,4451.3,3.744]
[1756410987687,0.20740696,4451.4,4451.3,3.9449]
[1756410988189,0.40433,4451.5,4451.3,3.9449]
[1756410988394,0.40433,4451.5,4451.4,0.9751]
[1756410989590,0.40432,4451.6,4451.5,0.5362]
[1756410989789,0.3004,4452.5,4451.5,0.5362]
[1756410989790,0.40431,4451.8,4451.5,0.60523]
[1756410989997,1.01064,4452.4,4451.8,0.5362]
[1756410990195,0.40429,4451.9,4451.8,0.7371]
[1756410990495,0.40429,4451.9,4451.8,0.9751]
[1756410991593,3.2078,4452.7,4452.4,0.2009]
[1756410991906,0.40424,4452.6,4452.5,0.9751]
[1756410993805,0.40425,4452.4,4452.3,0.7742]
[1756410994005,0.40425,4452.4,4452.3,0.9751]
[1756410996595,1.06345,4452.4,4452.3,0.7371]
[1756410996807,1.06345,4452.4,4452.3,0.9751]
[1756410997195,0.40425,4452.4,4452.3,0.9751]
[1756410998798,0.22457,4453.7,4452.3,0.9751]
[1756410999003,0.40425,4452.4,4452.3,0.7371]
[1756410999205,0.40425,4452.4,4452.3,0.9751]
[1756411000004,0.40425,4452.4,4452.3,1.25154983]
[1756411000208,0.40425,4452.4,4452.3,0.51444983]
[1756411000914,0.40425,4452.4,4452.3,3.72224983]
[1756411001210,0.40425,4452.4,4452.3,4.27684983]
[1756411001799,0.40425,4452.4,4452.3,4.0004]
[1756411002605,0.40425,4452.4,4452.3,4.3737]
[1756411002910,0.40425,4452.4,4452.3,4.65041567]
[1756411003109,0.40425,4452.4,4452.3,4.3737]
[1756411003302,0.40425,4452.4,4452.3,4.1357]
[1756411003503,0.40425,4452.4,4452.3,4.3727]
[1756411004508,0.40425,4452.4,4452.3,4.1357]
[1756411004707,10.10518,4452.9,4452.1,3.2078]
[1756411004910,0.4043,4451.8,4451.7,0.9279]
[1756411005109,0.4043,4451.8,4451.7,4.64945943]
[1756411008602,0.4043,4451.8,4451.7,4.3727]
[1756411011922,0.4043,4451.9,4451.8,0.4043]
[1756411012215,0.40428,4452.0,4451.9,0.9279]
[1756411012515,1.18298,4452.0,4451.9,0.9279]
[1756411012714,1.3205,4451.8,4451.7,3.2078]
[1756411013104,1.3205,4451.8,4451.7,3.8181]
[1756411013809,1.3205,4451.8,4451.7,0.6103]
[1756411014616,1.3205,4451.8,4451.7,1.1649]
[1756411014917,0.7787,4451.8,4451.7,4.1357]
[1756411015215,1.3205,4451.8,4451.7,4.3727]
[1756411015415,1.3205,4451.8,4451.7,4.1357]
[1756411015715,1.3205,4451.8,4451.7,4.3727]
[1756411016914,1.3205,4451.8,4451.7,4.1357]
[1756411017315,1.3205,4451.8,4451.7,4.3727]
[1756411018114,1.3205,4451.8,4451.7,4.1357]
[1756411018315,1.3205,4451.8,4451.7,1.1649]
[1756411018510,1.3205,4451.8,4451.7,4.3727]
[1756411018710,1.3205,4451.8,4451.7,1.1649]
[1756411019512,1.3205,4451.8,4451.7,0.3733]
[1756411019714,1.3205,4451.8,4451.7,0.6103]
[1756411020514,1.3205,4451.8,4451.7,1.1649]
[1756411020711,1.01059,4452.6,4451.7,1.1649]
[1756411021018,0.40428,4452.1,4452.0,3.5811]
[1756411021219,0.40426,4452.3,4452.2,0.3733]
[1756411021515,0.40426,4452.3,4452.2,0.9279]
[1756411021916,0.77853,4453.7,4453.6,0.3733]
[1756411022121,0.77853,4453.7,4453.6,0.99641272]
[1756411022317,1.32033,4453.7,4453.6,0.99641272]
[1756411023212,1.32033,4453.7,4453.2,0.3733]
[1756411023213,1.32037,4453.3,4453.2,0.3733]
[1756411023413,1.32037,4453.3,4453.1,3.2078]
[1756411023414,0.9162,4453.2,4453.1,3.2078]
[1756411023617,0.40417,4453.3,4453.1,4.1357]
[1756411023814,1.32037,4453.3,4453.2,0.7916]
[1756411024018,4.9162,4453.2,4453.1,3.2078]
[1756411024218,2.02094,4453.1,4452.5,0.237]
[1756411024421,1.32043,4452.6,4452.5,0.6103]
[1756411024717,1.32043,4452.6,4452.5,0.237]
[1756411025510,0.40425,4452.4,4452.3,3.2078]
[1756411025710,0.40425,4452.4,4452.3,4.3727]
[1756411026716,1.50325,4452.4,4452.3,4.3727]
[1756411026923,0.40425,4452.4,4452.3,4.3727]
[1756411029914,1.50325,4452.4,4452.3,3.5811]
[1756411030120,1.50325,4452.4,4452.3,3.2078]
[1756411030320,5.50325,4452.4,4452.3,3.2078]
[1756411030820,1.50325,4452.4,4452.3,3.5809]
[1756411031026,0.78345,4452.4,4452.3,4.6024]
[1756411031620,0.40425,4452.4,4452.3,4.6024]
[1756411033126,0.40427,4452.2,4452.1,0.237]
[1756411033420,0.40427,4452.2,4451.3,3.4448]
[1756411033421,1.50334,4451.4,4451.3,3.4448]
[1756411033726,1.50334,4451.4,4451.3,3.2078]
[1756411034124,1.50334,4451.4,4451.3,3.4448]
[1756411034324,1.50334,4451.4,4451.3,3.8179]
[1756411034523,0.78357,4451.1,4451.0,0.7845]
[1756411034716,1.50337,4451.1,4451.0,1.0215]
[1756411034919,1.50337,4451.1,4451.0,1.3946]
[1756411035316,1.50337,4451.1,4451.0,0.6101]
[1756411035516,0.40437,4451.1,4451.0,1.3946]
[1756411036226,0.78357,4451.1,4451.0,1.3946]
[1756411037226,0.40437,4451.1,4451.0,1.3946]
[1756411044433,0.40437,4451.1,4450.8,3.2078]
[1756411044434,1.50338,4450.9,4450.8,3.2078]
[1756411045627,1.50338,4450.9,4450.8,4.6014]
[1756411045628,0.40438,4450.9,4450.8,4.6014]
[1756411045940,1.50338,4450.9,4450.8,1.3936]
[1756411047738,0.78358,4450.9,4450.8,1.3936]
[1756411047938,0.40438,4450.9,4450.8,1.3936]
[1756411048539,1.50338,4450.9,4450.8,1.3936]
[1756411050436,0.40438,4450.9,4450.8,1.3936]
[1756411050738,0.40438,4451.0,4450.9,1.56198]
[1756411051039,0.40438,4451.0,4450.9,1.1576]
[1756411051640,0.40435,4451.3,4451.2,1.1576]
[1756411051940,4.71106,4452.3,4452.2,1.1576]
[1756411052142,4.71106,4452.3,4452.2,1.3936]
[1756411052437,1.50326,4452.3,4452.2,1.3936]
[1756411052832,0.40426,4452.3,4452.2,4.6014]
[1756411053037,1.50326,4452.3,4452.2,4.3654]
[1756411053341,1.50326,4452.3,4452.2,4.6014]
[1756411054133,1.50326,4452.3,4452.2,4.3654]
[1756411054336,1.50326,4452.3,4452.2,4.6014]
[1756411055438,1.50326,4452.3,4452.2,0.236]
[1756411055633,0.78346,4452.3,4452.2,1.3936]
[1756411055936,0.40426,4452.3,4452.2,4.6014]
[1756411060841,1.01055,4452.8,4452.2,5.00567]
[1756411061034,0.4042,4452.9,4452.8,0.7684]
[1756411061232,1.6494,4452.9,4452.8,1.5165]
[1756411062141,1.6494,4452.9,4452.8,0.235]
[1756411062645,0.7679,4452.8,4452.7,3.2078]
[1756411062840,1.2452,4452.8,4452.7,3.4428]
[1756411063543,1.2452,4452.8,4452.7,3.2078]
[1756411063743,1.2452,4452.8,4452.7,3.4428]
[1756411064244,1.2452,4452.8,4452.7,3.2078]
[1756411064543,1.2452,4452.8,4452.7,3.4428]
[1756411065147,1.2452,4452.8,4452.7,3.2078]
[1756411065335,1.2452,4452.8,4452.7,3.4428]
[1756411066141,0.4773,4452.3,4452.2,3.2078]
[1756411066343,1.64948,4452.1,4452.0,0.235]
[1756411066648,1.64948,4452.1,4451.6,3.2078]
[1756411066649,1.64951,4451.7,4451.6,3.7209]
[1756411067142,1.64951,4451.7,4451.6,4.7243]
[1756411067541,0.40431,4451.7,4451.6,4.7243]
[1756411069542,0.7679,4452.6,4451.7,0.40431]
[1756411069745,0.7679,4452.6,4451.6,3.4428]
[1756411069746,1.64943,4452.6,4452.5,1.2815]
[1756411070050,1.64943,4452.6,4452.5,1.5165]
[1756411071042,0.40423,4452.6,4452.5,1.5165]
[1756411075339,0.40423,4452.6,4452.5,1.2815]
[1756411075539,1.64943,4452.6,4452.5,1.5165]
[1756411076652,1.64943,4452.6,4452.5,0.7481]
[1756411076850,1.64943,4452.6,4452.5,0.235]
[1756411077347,1.64943,4452.6,4451.7,3.7209]
[1756411077348,0.8816,4451.8,4451.7,3.7209]
[1756411077554,1.6495,4451.8,4451.7,0.235]
[1756411079056,1.6495,4451.8,4451.7,1.5165]
[1756411079749,0.40433,4451.5,4451.4,31.87812]
[1756411079948,1.01082,4451.6,4451.4,0.235]
[1756411080153,0.88169,4450.8,4450.7,1.2815]
[1756411080353,0.88169,4450.8,4450.7,1.5165]
[1756411080354,0.40439,4450.8,4450.7,1.5165]
[1756411080754,1.64959,4450.8,4450.7,1.5165]
[1756411081151,1.64959,4450.8,4450.1,3.2078]
[1756411081152,1.01104,4450.6,4450.1,3.2078]
[1756411081352,0.40442,4450.5,4450.4,1.2815]
[1756411081652,0.7679,4451.4,4450.5,0.7684]
[1756411081857,1.01069,4452.1,4451.6,0.5131]
[1756411082156,0.4773,4451.8,4451.7,1.5165]
[1756411082358,1.2452,4451.8,4451.7,1.5165]
[1756411082653,1.2452,4451.8,4450.9,3.2078]
[1756411082654,1.2452,4451.0,4450.9,3.4428]
[1756411083053,1.2452,4451.0,4450.9,0.7481]
[1756411083350,1.64957,4451.0,4450.9,0.7481]
[1756411083546,1.64957,4451.0,4450.9,3.9559]
[1756411083749,1.64957,4451.0,4450.9,4.7243]
[1756411084156,1.64957,4451.0,4450.9,3.9559]
[1756411084358,1.64957,4451.0,4450.9,4.7243]
[1756411084656,1.01086,4451.4,4451.0,2.8738387]
[1756411084856,0.4773,4451.1,4451.0,4.1553387]
[1756411085157,0.88166,4451.1,4451.0,4.1553387]
[1756411085352,0.88166,4451.1,4451.0,2.8738387]
[1756411085753,1.01086,4451.4,4451.1,1.9921787]
[1756411085955,0.4773,4451.2,4451.1,2.7605787]
[1756411086755,0.40434,4451.3,4451.2,0.9312787]
[1756411087056,0.40434,4451.3,4451.2,2.1267787]
[1756411087562,0.40434,4451.3,4451.2,1.6612187]
[1756411088263,0.40434,4451.3,4451.2,1.8962187]
[1756411088466,1.01079,4451.6,4451.3,0.7261]
[1756411088665,0.40431,4451.6,4451.5,1.1955]
[1756411090060,0.40431,4451.6,4451.5,1.4305]
[1756411092473,1.39813,4450.6,4450.3,3.2078]
[1756411092769,0.40442,4450.4,4450.3,3.6772]
[1756411093362,1.01082,4451.5,4450.3,3.6772]
[1756411093564,0.40441,4450.5,4450.4,0.7044]
[1756411093868,0.40441,4450.5,4450.4,3.9122]
[1756411094469,0.40441,4450.5,4450.4,4.6383]
[1756411095672,1.01088,4451.2,4450.4,7.9122]
[1756411095866,0.89082,4451.5,4451.4,1.1955]
[1756411096073,0.40435,4451.2,4451.1,3.2078]
[1756411096372,1.62685,4451.2,4451.1,4.6383]
[1756411098670,0.40435,4451.2,4451.1,4.6383]
[1756411100770,2.02099,4453.0,4451.1,4.31656]
[1756411100771,1.01072,4451.9,4451.1,4.31656]
[1756411101076,0.40428,4451.9,4451.8,1.1955]
[1756411101277,0.40428,4451.9,4451.8,1.4305]
[1756411102665,0.40428,4452.0,4451.9,0.7261]
[1756411102867,1.01049,4452.9,4452.4,0.4694]
[1756411103070,4.21825,4453.1,4452.8,0.4694]
[1756411103275,0.89068,4453.0,4452.9,1.4305]
[1756411103674,1.62668,4453.0,4452.9,1.4305]
[1756411104066,1.62668,4453.0,4452.9,0.235]
[1756411104678,1.62668,4453.0,4452.9,0.7044]